bitfinex/quotes_SOLUSD_20250717
["timestamp","ask_amount","ask_price","bid_price","bid_amount"]
[1752771613086,31.42,172.81,172.8,5.78188508]
[1752771615097,31.42,172.81,172.78,0.71]
[1752771615391,31.42,172.81,172.8,5.78188508]
[1752771616380,31.42,172.81,172.8,6.49188508]
[1752771616690,31.42,172.81,172.8,12.27377016]
[1752771616891,31.5,172.82,172.8,12.27377016]
[1752771617199,37.28636731,172.82,172.77,28.2708]
[1752771617499,37.99636731,172.82,172.81,5.78188508]
[1752771618486,37.28636731,172.82,172.81,5.78188508]
[1752771619190,31.5,172.82,172.81,6.49188508]
[1752771619783,0.1,172.82,172.81,5.78188508]
[1752771619984,31.5,172.82,172.81,5.78188508]
[1752771620182,0.1,172.82,172.81,5.78188508]
[1752771620406,31.5,172.82,172.81,5.78188508]
[1752771620881,31.5,172.82,172.81,6.49188508]
[1752771621610,0.1,172.82,172.81,6.49188508]
[1752771621780,31.5,172.82,172.81,6.49188508]
[1752771621987,0.1,172.82,172.81,6.49188508]
[1752771622718,0.1,172.82,172.81,5.78188508]
[1752771624632,0.1,172.82,172.8,0.06]
[1752771624925,0.1,172.82,172.81,5.78188508]
[1752771625304,0.1,172.82,172.81,12.27858723]
[1752771625717,0.03,172.86,172.81,12.27858723]
[1752771625718,0.03,172.86,172.81,93.47478723]
[1752771625911,31.41,172.86,172.85,5.78188508]
[1752771627812,31.41,172.86,172.85,11.56724811]
[1752771628424,0.03,172.86,172.85,12.25724811]
[1752771629028,0.03,172.86,172.85,5.78188508]
[1752771630238,0.03,172.86,172.85,11.56724811]
[1752771630419,0.03,172.86,172.85,12.25724811]
[1752771630913,0.03,172.86,172.85,6.47188508]
[1752771631317,0.03,172.86,172.85,5.78188508]
[1752771631816,0.44,172.86,172.85,5.78188508]
[1752771632334,0.44,172.86,172.83,5.78188508]
[1752771632716,0.03,172.86,172.83,5.78188508]
[1752771632907,0.41,172.85,172.83,5.78188508]
[1752771633107,0.41,172.85,172.84,5.78188508]
[1752771633314,0.03,172.86,172.84,5.78188508]
[1752771633608,0.72,172.85,172.83,5.78188508]
[1752771633815,0.72,172.85,172.82,5.78188508]
[1752771633816,31.36,172.84,172.82,5.78188508]
[1752771634226,0.72,172.83,172.82,5.78188508]
[1752771635327,31.36,172.84,172.82,5.78188508]
[1752771635532,31.36,172.84,172.83,5.78188508]
[1752771636429,31.34,172.84,172.83,5.78188508]
[1752771636737,31.34,172.84,172.81,0.69]
[1752771637037,32.06,172.84,172.83,5.78188508]
[1752771637407,31.34,172.84,172.83,5.78188508]
[1752771637623,31.34,172.84,172.8,11.62884465]
[1752771637838,31.34,172.84,172.83,5.78188508]
[1752771637839,32.06,172.84,172.83,5.78188508]
[1752771638519,31.34,172.84,172.83,5.78188508]
[1752771640341,0.03,172.86,172.83,12.25791759]
[1752771640534,0.03,172.86,172.85,5.78188508]
[1752771640925,0.03,172.86,172.85,6.47188508]
[1752771642049,0.03,172.87,172.85,6.47188508]
[1752771642226,0.03,172.87,172.86,6.47188508]
[1752771642718,0.03,172.87,172.86,12.25691342]
[1752771642920,0.03,172.88,172.86,18.0387985]
[1752771643266,0.03,172.88,172.87,6.47188508]
[1752771644646,0.03,172.88,172.87,12.25657878]
[1752771644847,0.03,172.88,172.87,18.03846386]
[1752771645015,0.03,172.88,172.87,12.25657878]
[1752771645217,0.03,172.88,172.87,6.47188508]
[1752771645540,0.03,172.88,172.87,5.78188508]
[1752771646916,0.03,172.88,172.87,12.25657878]
[1752771648255,0.03,172.88,172.87,5.78188508]
[1752771648822,0.03,172.88,172.87,11.56657878]
[1752771649152,0.03,172.88,172.87,5.78188508]
[1752771649434,0.75,172.88,172.87,5.78188508]
[1752771650649,0.75,172.88,172.84,1.6094]
[1752771650851,0.03,172.88,172.86,5.78188508]
[1752771651030,0.03,172.88,172.87,5.78188508]
[1752771651228,0.03,172.88,172.86,5.78188508]
[1752771651424,0.72,172.87,172.86,5.78188508]
[1752771651954,32.02,172.87,172.86,5.78188508]
[1752771654046,31.3,172.87,172.86,5.78188508]
[1752771654727,31.28,172.87,172.86,5.78188508]
[1752771656056,0.03,172.88,172.86,5.78188508]
[1752771656244,31.31,172.88,172.87,5.78188508]
[1752771657059,31.31,172.88,172.87,6.47188508]
[1752771658347,31.31,172.88,172.87,12.25657878]
[1752771658551,0.03,172.88,172.87,12.25657878]
[1752771659431,0.03,172.88,172.87,5.78188508]
[1752771661865,0.03,172.88,172.87,6.49188508]
[1752771662160,0.03,172.88,172.87,12.27657878]
[1752771662756,0.03,172.88,172.87,18.05846386]
[1752771662959,0.1,172.91,172.9,5.78188508]
[1752771663342,0.82,172.91,172.9,5.78188508]
[1752771664042,0.1,172.91,172.9,5.78188508]
[1752771665447,0.1,172.91,172.9,6.49188508]
[1752771666727,0.1,172.91,172.9,12.27557507]
[1752771668565,0.1,172.91,172.9,11.56557507]
[1752771669267,0.1,172.91,172.9,12.27557507]
[1752771669953,0.1,172.91,172.88,77.0347]
[1752771670152,0.1,172.91,172.9,5.78188508]
[1752771670352,0.82,172.91,172.88,76.3247]
[1752771670550,0.1,172.91,172.9,5.78188508]
[1752771673866,0.1,172.91,172.9,4.74588508]
[1752771675340,0.82,172.91,172.89,5.78188508]
[1752771675546,0.72,172.9,172.89,5.78188508]
[1752771675746,31.94,172.9,172.89,5.78188508]
[1752771675945,31.22,172.9,172.89,5.78188508]
[1752771677363,31.22,172.9,172.89,6.49188508]
[1752771678252,31.22,172.9,172.89,5.78188508]
[1752771678768,31.22,172.9,172.89,11.5659096]
[1752771679465,31.22,172.9,172.89,12.2759096]
[1752771680046,0.1,172.91,172.89,18.05779468]
[1752771680249,0.1,172.91,172.9,6.49188508]
[1752771680548,0.1,172.91,172.9,0.71]
[1752771680745,0.82,172.91,172.88,5.78427554]
[1752771680972,0.82,172.91,172.9,5.78188508]
[1752771681176,0.1,172.91,172.9,5.78188508]
[1752771682065,0.1,172.91,172.9,6.49188508]
[1752771682575,0.1,172.91,172.9,12.27557507]
[1752771683072,0.1,172.91,172.9,5.78188508]
[1752771683271,0.1,172.91,172.9,11.56557507]
[1752771684181,0.1,172.91,172.9,5.78188508]
[1752771685478,0.1,172.91,172.9,12.27557507]
[1752771688759,0.1,172.91,172.9,11.56557507]
[1752771688955,0.1,172.91,172.9,12.28557507]
[1752771689580,0.1,172.91,172.9,5.78188508]
[1752771690252,0.77,172.91,172.87,0.03]
[1752771690460,0.67,172.9,172.89,5.78188508]
[1752771690681,0.67,172.9,172.87,31.81460793]
[1752771690881,0.1,172.91,172.89,5.78188508]
[1752771691059,0.77,172.91,172.9,5.78188508]
[1752771691376,0.1,172.91,172.9,5.78188508]
[1752771692676,0.1,172.91,172.9,12.28557507]
[1752771693360,0.1,172.91,172.9,6.50188508]
[1752771694174,0.06,172.94,172.9,12.28557507]
[1752771694394,0.06,172.94,172.93,5.78188508]
[1752771695082,0.73,172.94,172.87,0.75]
[1752771695377,0.73,172.94,172.91,5.78188508]
[1752771695591,0.73,172.94,172.92,5.78188508]
[1752771695779,0.73,172.94,172.87,0.03]
[1752771695956,0.73,172.94,172.92,5.78188508]
[1752771696558,0.73,172.94,172.93,5.78188508]
[1752771696783,0.06,172.94,172.93,5.78188508]
[1752771697165,0.06,172.94,172.93,6.50188508]
[1752771697753,23.29708843,172.94,172.88,0.72]
[1752771697986,0.67,172.93,172.9,5.78188508]
[1752771698157,0.67,172.93,172.91,5.78188508]
[1752771698558,0.67,172.92,172.88,3.43202787]
[1752771698773,31.81,172.91,172.9,5.78188508]
[1752771699784,31.81,172.91,172.88,3.43202787]
[1752771699982,0.67,172.9,172.88,3.43202787]
[1752771700283,0.67,172.89,172.88,3.43202787]
[1752771700657,5.7838187,172.9,172.88,9.21391295]
[1752771700861,6.4538187,172.9,172.88,9.21391295]
[1752771701058,6.4538187,172.9,172.88,3.43202787]
[1752771701286,6.4538187,172.9,172.88,9.21391295]
[1752771702082,6.4538187,172.9,172.88,3.43202787]
[1752771702258,6.4538187,172.9,172.88,9.21391295]
[1752771702676,36.9234602,172.91,172.88,9.21391295]
[1752771702885,37.5934602,172.91,172.88,9.21391295]
[1752771703979,31.14,172.91,172.9,5.78188508]
[1752771704560,0.06,172.94,172.9,6.50188508]
[1752771704770,0.06,172.94,172.93,5.78188508]
[1752771704973,31.18,172.94,172.93,5.78188508]
[1752771706275,0.06,172.94,172.93,5.78188508]
[1752771706473,0.06,172.94,172.93,6.50188508]
[1752771706798,0.06,172.94,172.93,10.78394085]
[1752771709165,0.06,172.94,172.93,10.78423954]
[1752771709778,0.06,172.94,172.93,6.50188508]
[1752771710092,0.06,172.94,172.93,10.77364135]
[1752771710695,0.06,172.94,172.93,16.55632798]
[1752771711278,0.06,172.94,172.93,10.77364135]
[1752771711585,0.06,172.94,172.93,16.55632798]
[1752771712184,0.06,172.94,172.93,16.57894262]
[1752771713378,0.06,172.94,172.93,10.79625599]
[1752771713889,0.06,172.94,172.93,10.07625599]
[1752771715095,0.73,172.94,172.93,4.29437091]
[1752771715895,17.51468397,172.94,172.93,4.29437091]
[1752771716200,23.29656905,172.94,172.93,4.29437091]
[1752771716373,42.78468397,172.91,172.9,0.03]
[1752771716576,79.64656905,172.91,172.9,0.03]
[1752771716773,86.09992455,172.91,172.9,0.03]
[1752771720190,49.23803947,172.91,172.9,0.03]
[1752771720517,53.64803947,172.91,172.9,0.03]
[1752771720999,54.33803947,172.91,172.9,0.03]
[1752771721709,31.08,172.91,172.9,4.28432225]
[1752771722710,54.33803947,172.91,172.9,0.03]
[1752771725705,60.11992455,172.91,172.9,0.03]
[1752771727880,60.11992455,172.91,172.87,0.03]
[1752771728085,5.78188508,172.88,172.87,0.03]
[1752771728300,53.62656905,172.88,172.87,0.03]
[1752771728484,54.31656905,172.88,172.87,0.03]
[1752771728684,48.53468397,172.88,172.87,0.03]
[1752771728902,54.31656905,172.88,172.87,0.03]
[1752771729586,60.10092814,172.88,172.87,0.03]
[1752771729790,16.78468397,172.87,172.83,0.03]
[1752771729982,22.56656905,172.84,172.83,0.03]
[1752771730186,53.60656905,172.84,172.83,0.03]
[1752771730387,54.29656905,172.84,172.83,0.03]
[1752771731311,48.51468397,172.84,172.83,0.03]
[1752771731615,53.61038172,172.84,172.83,0.03]
[1752771732026,60.0822668,172.84,172.83,0.03]
[1752771732308,26.0,172.81,172.8,0.06]
[1752771732616,79.60656905,172.81,172.8,0.06]
[1752771732907,80.29656905,172.81,172.8,0.06]
[1752771733277,74.51468397,172.81,172.8,0.06]
[1752771733585,74.51468397,172.81,172.78,2.28875815]
[1752771733586,22.57205592,172.79,172.78,2.28875815]
[1752771733889,59.393941,172.79,172.78,2.28875815]
[1752771734076,60.083941,172.79,172.78,2.28875815]
[1752771734476,54.30205592,172.79,172.78,2.28875815]
[1752771734677,60.083941,172.79,172.78,2.28875815]
[1752771735417,23.26205592,172.79,172.78,2.28875815]
[1752771735708,54.30205592,172.79,172.78,2.28875815]
[1752771735880,53.61205592,172.79,172.78,2.28875815]
[1752771736085,54.30205592,172.79,172.78,2.28875815]
[1752771736406,53.61205592,172.79,172.78,2.28875815]
[1752771736612,54.30205592,172.79,172.78,2.28875815]
[1752771736808,53.61205592,172.79,172.78,2.28875815]
[1752771737117,54.30205592,172.79,172.78,2.28875815]
[1752771737316,60.083941,172.79,172.78,2.28875815]
[1752771737697,54.30205592,172.79,172.78,2.28875815]
[1752771737886,60.083941,172.79,172.78,2.28875815]
[1752771738088,54.30205592,172.79,172.78,2.28875815]
[1752771738697,60.083941,172.79,172.78,2.28875815]
[1752771739305,16.78468397,172.78,172.75,0.03]
[1752771739515,16.78468397,172.76,172.75,0.03]
[1752771739840,22.5730609,172.76,172.75,0.03]
[1752771741633,31.04,172.77,172.75,6.53188508]
[1752771741816,47.82468397,172.77,172.76,5.78188508]
[1752771742614,47.82468397,172.77,172.75,6.53188508]
[1752771742830,53.61279584,172.77,172.75,5.81188508]
[1752771743587,47.82468397,172.77,172.75,6.53188508]
[1752771743789,16.78468397,172.76,172.75,0.03]
[1752771744129,23.25656905,172.76,172.75,0.03]
[1752771744506,17.47468397,172.76,172.75,0.03]
[1752771744711,16.78468397,172.76,172.75,0.03]
[1752771745825,22.5730609,172.76,172.75,0.03]
[1752771747304,28.35494598,172.76,172.75,0.03]
[1752771747856,22.5730609,172.76,172.75,0.03]
[1752771748033,28.35494598,172.76,172.75,0.03]
[1752771748205,29.02494598,172.76,172.75,0.03]
[1752771749403,23.2430609,172.76,172.75,0.03]
[1752771749605,29.02494598,172.76,172.75,0.03]
[1752771749804,28.35494598,172.76,172.75,0.03]
[1752771750111,29.02494598,172.76,172.75,0.03]
[1752771751421,28.35494598,172.76,172.75,0.03]
[1752771752328,22.5730609,172.76,172.75,0.03]
[1752771752537,47.80468397,172.76,172.75,6.48188508]
[1752771752826,47.80468397,172.76,172.75,0.03]
[1752771753737,48.47468397,172.76,172.75,0.03]
[1752771754408,60.04494598,172.76,172.75,0.03]
[1752771754925,59.37494598,172.76,172.75,0.03]
[1752771755917,60.04494598,172.76,172.75,0.03]
[1752771759543,60.04494598,172.76,172.75,0.03]
[1752771760242,53.5930609,172.76,172.75,0.03]
[1752771762132,59.37494598,172.76,172.75,0.03]
[1752771762825,53.5930609,172.76,172.75,0.03]
[1752771763121,59.37494598,172.76,172.75,0.03]
[1752771763560,53.5930609,172.76,172.75,0.03]
[1752771763842,47.80468397,172.76,172.75,6.48188508]
[1752771764162,53.5930609,172.76,172.75,0.7]
[1752771764748,53.5930609,172.76,172.75,0.03]
[1752771765244,54.2630609,172.76,172.75,0.03]
[1752771765831,53.5930609,172.76,172.75,0.03]
[1752771766215,47.80468397,172.76,172.75,0.7]
[1752771766637,47.80468397,172.76,172.75,6.48188508]
[1752771767631,0.03,172.8,172.75,13.84439709]
[1752771767945,0.03,172.8,172.76,4.80223814]
[1752771768151,31.0,172.79,172.77,4.13223814]
[1752771768319,31.0,172.79,172.78,9.91587231]
[1752771768525,31.0,172.79,172.78,10.58587231]
[1752771768722,31.0,172.79,172.78,16.37357922]
[1752771768920,31.0,172.79,172.78,16.37295426]
[1752771769145,31.0,172.79,172.78,22.91175426]
[1752771771437,0.03,172.8,172.79,1.6576]
[1752771771643,30.98,172.81,172.79,18.02473243]
[1752771771829,30.98,172.81,172.8,16.36713243]
[1752771772933,16.81468397,172.87,172.8,16.36713243]
[1752771772934,0.03,172.87,172.8,42.36713243]
[1752771773135,31.01,172.87,172.86,5.78188508]
[1752771773332,31.01,172.87,172.86,10.58524735]
[1752771773728,31.01,172.87,172.86,6.45188508]
[1752771774431,31.01,172.87,172.86,5.78188508]
[1752771774839,31.01,172.87,172.83,0.67]
[1752771774840,31.01,172.87,172.85,5.78188508]
[1752771775448,31.01,172.87,172.86,5.78188508]
[1752771775956,31.01,172.87,172.86,6.45188508]
[1752771777155,31.01,172.87,172.86,7.99728508]
[1752771777877,31.01,172.87,172.86,1.5454]
[1752771778150,31.01,172.87,172.86,7.32728508]
[1752771778539,31.01,172.87,172.86,7.99728508]
[1752771779058,31.01,172.87,172.86,7.32728508]
[1752771779756,31.01,172.87,172.86,1.5454]
[1752771779961,31.01,172.87,172.86,7.32728508]
[1752771781143,31.01,172.87,172.86,7.99728508]
[1752771782855,31.01,172.87,172.86,13.78231342]
[1752771784578,0.03,172.87,172.86,13.78231342]
[1752771785787,0.03,172.87,172.86,7.99728508]
[1752771785949,0.03,172.87,172.86,7.32728508]
[1752771786580,0.03,172.87,172.83,6.45592408]
[1752771786763,0.03,172.87,172.86,5.78188508]
[1752771787676,17.50468397,172.87,172.85,5.78188508]
[1752771787903,17.50468397,172.87,172.84,5.78188508]
[1752771788058,17.50468397,172.87,172.81,13.76364031]
[1752771788059,16.78468397,172.85,172.83,5.78188508]
[1752771788251,30.92,172.84,172.82,5.78188508]
[1752771788453,30.92,172.84,172.83,6.45188508]
[1752771788868,30.92,172.84,172.83,5.78188508]
[1752771789047,30.92,172.84,172.81,2.286]
[1752771789274,30.92,172.84,172.83,5.78188508]
[1752771789695,30.92,172.84,172.77,20.94915246]
[1752771789696,31.61,172.84,172.82,5.78188508]
[1752771790586,30.92,172.84,172.83,5.78188508]
[1752771792201,30.92,172.84,172.82,5.78188508]
[1752771792507,31.61,172.84,172.83,5.78188508]
[1752771792810,54.18038172,172.84,172.78,0.67]
[1752771792981,17.47468397,172.83,172.8,5.78188508]
[1752771793304,31.61,172.82,172.8,5.78188508]
[1752771793500,30.92,172.82,172.8,5.78188508]
[1752771793899,30.92,172.82,172.81,5.78188508]
[1752771794891,30.92,172.82,172.81,6.45188508]
[1752771796103,30.92,172.82,172.81,12.23858723]
[1752771798482,0.03,172.87,172.81,12.23858723]
[1752771798711,0.03,172.87,172.86,5.78188508]
[1752771798875,30.93,172.87,172.86,5.78188508]
[1752771799080,30.93,172.87,172.86,6.45188508]
[1752771799807,30.93,172.87,172.86,26.67]
[1752771800109,30.93,172.87,172.86,42.34162977]
[1752771800311,0.03,172.87,172.86,16.34162977]
[1752771800802,0.03,172.87,172.86,12.23691342]
[1752771801005,0.03,172.87,172.86,16.34190369]
[1752771801390,0.03,172.87,172.86,42.34190369]
[1752771801915,0.03,172.87,172.86,38.23691342]
[1752771802527,0.03,172.87,172.86,42.34229304]
[1752771802894,30.9,172.89,172.86,48.12417812]
[1752771803113,30.9,172.89,172.88,11.56377016]
[1752771803411,30.9,172.89,172.88,12.23377016]
[1752771803784,30.9,172.89,172.88,16.34097935]
[1752771804295,0.06,172.91,172.89,5.78402452]
[1752771804516,0.06,172.91,172.9,5.78188508]
[1752771804726,0.06,172.91,172.9,40.70758508]
[1752771804891,0.06,172.94,172.9,40.70758508]
[1752771804892,0.06,172.94,172.93,5.78188508]
[1752771805289,0.06,172.94,172.93,6.45188508]
[1752771806014,0.06,172.94,172.93,10.55946497]
[1752771806593,0.06,172.94,172.93,42.34189292]
[1752771807194,0.06,172.94,172.93,42.34179618]
[1752771807699,0.06,172.94,172.93,42.34194396]
[1752771810617,30.88,172.96,172.93,42.34194396]
[1752771810800,0.06,172.98,172.95,31.78188508]
[1752771811120,0.06,172.98,172.97,5.78188508]
[1752771811503,0.06,172.98,172.97,12.23323444]
[1752771813494,0.06,172.98,172.97,0.67]
[1752771813699,0.06,172.98,172.97,5.78188508]
[1752771813926,0.74,172.98,172.97,5.78188508]
[1752771814622,0.06,172.98,172.97,5.78188508]
[1752771817006,0.06,172.98,172.97,12.23323444]
[1752771817621,0.06,172.98,172.97,5.78188508]
[1752771818335,0.74,172.98,172.96,5.78188508]
[1752771818507,0.68,172.97,172.96,5.78188508]
[1752771819829,0.06,172.98,172.96,5.78188508]
[1752771820005,0.74,172.98,172.94,0.03]
[1752771820208,0.74,172.98,172.97,5.78188508]
[1752771821035,0.06,172.98,172.97,5.78188508]
[1752771821340,0.06,172.98,172.97,6.45188508]
[1752771822207,0.06,172.98,172.97,5.78188508]
[1752771824228,0.74,172.98,172.94,0.03]
[1752771824426,0.74,172.98,172.97,5.78188508]
[1752771825031,0.06,172.98,172.97,5.78188508]
[1752771825724,0.06,172.98,172.97,6.45188508]
[1752771826237,0.06,172.98,172.97,5.78188508]
[1752771827329,0.06,172.98,172.97,12.23323444]
[1752771827720,0.06,172.98,172.97,0.67]
[1752771827929,0.06,172.98,172.97,6.45188508]
[1752771829436,0.06,172.98,172.97,12.23323444]
[1752771831056,0.74,172.98,172.94,26.03]
[1752771831227,0.68,172.97,172.94,0.03]
[1752771831416,30.8,172.96,172.95,5.78188508]
[1752771833345,31.48,172.96,172.94,0.03]
[1752771833518,23.24656905,172.95,172.94,0.03]
[1752771833922,22.56656905,172.95,172.88,5.78188508]
[1752771834242,77.03592548,172.96,172.88,5.78188508]
[1752771834243,16.78468397,172.92,172.88,5.78188508]
[1752771834444,30.8,172.91,172.9,5.78188508]
[1752771835151,16.78468397,172.9,172.88,5.78188508]
[1752771835352,23.24851599,172.9,172.87,5.81188508]
[1752771835552,0.68,172.89,172.87,0.03]
[1752771835723,22.56851599,172.9,172.87,0.03]
[1752771835724,30.8,172.88,172.87,0.03]
[1752771835931,30.8,172.88,172.87,5.81188508]
[1752771836438,31.48,172.88,172.87,0.03]
[1752771837447,37.26435909,172.88,172.87,0.03]
[1752771838351,31.48,172.88,172.87,0.03]
[1752771838648,30.8,172.88,172.87,0.03]
[1752771839024,37.24435909,172.88,172.87,0.03]
[1752771839247,31.46,172.88,172.87,0.03]
[1752771839419,37.24435909,172.88,172.87,0.03]
[1752771839851,31.46,172.88,172.87,0.03]
[1752771840224,37.24435909,172.88,172.87,0.03]
[1752771840966,31.46,172.88,172.87,0.03]
[1752771841258,30.8,172.88,172.87,5.81188508]
[1752771841426,30.78,172.88,172.87,5.81188508]
[1752771841742,0.66,172.88,172.87,0.03]
[1752771842061,22.56656905,172.91,172.89,5.78188508]
[1752771842062,6.44377002,172.9,172.89,5.78188508]
[1752771842229,54.00845399,172.9,172.89,5.78188508]
[1752771842547,54.00845399,172.9,172.87,0.03]
[1752771842862,0.66,172.89,172.87,5.81188508]
[1752771843033,30.78,172.88,172.87,0.03]
[1752771843219,30.78,172.88,172.87,5.81188508]
[1752771843547,30.78,172.88,172.87,0.03]
[1752771843735,30.78,172.88,172.87,5.81188508]
[1752771844337,31.44,172.88,172.87,0.03]
[1752771845039,37.22435909,172.88,172.87,0.03]
[1752771845224,31.44,172.88,172.87,0.03]
[1752771845431,31.44,172.88,172.87,5.81188508]
[1752771845840,30.78,172.88,172.87,5.81188508]
[1752771846040,30.78,172.88,172.87,0.03]
[1752771846240,30.78,172.88,172.87,5.81188508]
[1752771846937,31.44,172.88,172.87,5.81188508]
[1752771847345,31.44,172.88,172.87,0.03]
[1752771847346,30.78,172.88,172.87,0.03]
[1752771847663,30.78,172.88,172.87,6.50188508]
[1752771848029,30.78,172.88,172.87,5.81188508]
[1752771848526,30.78,172.88,172.87,0.03]
[1752771848748,30.78,172.88,172.87,5.81188508]
[1752771848960,30.78,172.88,172.87,0.03]
[1752771850070,43.00624417,172.88,172.87,0.03]
[1752771850270,59.79092814,172.88,172.87,0.03]
[1752771852994,62.80593408,172.88,172.87,0.03]
[1752771853132,16.78468397,172.87,172.8,0.03]
[1752771853336,16.78468397,172.87,172.8,5.81188508]
[1752771853337,16.78468397,172.84,172.8,5.81188508]
[1752771853644,31.44,172.83,172.8,0.03]
[1752771854149,0.66,172.82,172.8,5.81188508]
[1752771854349,31.42,172.81,172.8,0.03]
[1752771854574,48.20468397,172.81,172.8,0.03]
[1752771854936,53.98656905,172.81,172.8,0.03]
[1752771855261,48.20468397,172.81,172.8,0.03]
[1752771855937,0.66,172.83,172.8,5.81188508]
[1752771856146,30.76,172.82,172.81,5.78188508]
[1752771856647,31.42,172.82,172.8,5.81188508]
[1752771856850,0.66,172.81,172.8,0.03]
[1752771857067,17.44468397,172.81,172.8,0.03]
[1752771857678,23.22656905,172.81,172.8,0.03]
[1752771858168,29.0132712,172.81,172.8,0.03]
[1752771858747,23.23138612,172.81,172.8,0.03]
[1752771858966,29.0132712,172.81,172.8,0.03]
[1752771859778,23.23138612,172.81,172.8,0.03]
[1752771860068,29.0132712,172.81,172.8,0.03]
[1752771860364,55.0132712,172.81,172.8,0.03]
[1752771860557,85.7732712,172.81,172.8,0.03]
[1752771861153,79.99138612,172.81,172.8,0.03]
[1752771862458,85.7732712,172.81,172.8,0.03]
[1752771864147,79.99138612,172.81,172.8,0.03]
[1752771865352,148.3,172.85,172.8,0.03]
[1752771865353,0.66,172.85,172.8,6.50188508]
[1752771865554,47.54468397,172.84,172.83,5.78188508]
[1752771866377,30.76,172.84,172.83,5.78188508]
[1752771868856,30.76,172.84,172.83,6.46188508]
[1752771869056,30.76,172.84,172.83,12.24791759]
[1752771869272,16.78468397,172.88,172.83,12.24791759]
[1752771869474,16.78468397,172.88,172.87,5.78188508]
[1752771869660,47.54468397,172.88,172.87,5.78188508]
[1752771869976,48.24468397,172.88,172.85,5.78188508]
[1752771870484,54.02908337,172.88,172.85,5.78188508]
[1752771870684,0.7,172.87,172.84,5.78188508]
[1752771870867,31.44,172.86,172.84,5.78188508]
[1752771871060,30.74,172.85,172.84,5.78188508]
[1752771871802,30.74,172.85,172.84,6.46188508]
[1752771871981,30.74,172.85,172.84,5.78188508]
[1752771873199,37.22548242,172.85,172.8,0.71]
[1752771873500,0.7,172.84,172.82,5.78188508]
[1752771873707,30.74,172.83,172.82,5.78188508]
[1752771874464,30.74,172.83,172.81,5.78188508]
[1752771874900,30.74,172.83,172.8,0.03]
[1752771875076,30.74,172.83,172.82,5.78188508]
[1752771875885,36.52603251,172.83,172.81,5.78188508]
[1752771876685,30.74,172.83,172.81,5.78188508]
[1752771877976,30.74,172.83,172.82,5.78188508]
[1752771878488,30.74,172.83,172.82,6.46188508]
[1752771879477,30.74,172.83,172.82,10.58509436]
[1752771880118,30.74,172.83,172.82,16.37146167]
[1752771882478,5.78347337,172.91,172.82,16.37146167]
[1752771882703,31.78347337,172.91,172.9,5.78188508]
[1752771883056,30.72,172.91,172.9,5.78188508]
[1752771883377,30.72,172.91,172.9,6.46188508]
[1752771883578,30.72,172.91,172.9,5.78188508]
[1752771883885,37.2033555,172.91,172.85,0.68]
[1752771884214,36.5033555,172.91,172.87,5.78188508]
[1752771884417,0.7,172.9,172.87,5.78188508]
[1752771884623,0.7,172.89,172.87,5.78188508]
[1752771884906,30.7,172.88,172.87,5.78188508]
[1752771885588,30.7,172.88,172.87,16.36918659]
[1752771886279,30.7,172.88,172.87,10.58449289]
[1752771886605,30.7,172.88,172.87,5.78188508]
[1752771886817,36.48435909,172.88,172.87,5.78188508]
[1752771887016,37.18435909,172.88,172.86,5.78188508]
[1752771887207,37.18435909,172.88,172.87,5.78188508]
[1752771887523,36.48435909,172.88,172.87,5.78188508]
[1752771887827,37.18435909,172.88,172.85,5.78188508]
[1752771888035,36.48435909,172.88,172.86,5.78188508]
[1752771889708,37.18435909,172.88,172.86,5.78188508]